fUSD/lending_fUSD_20241225
["ID","MTS","AMOUNT","RATE_DAILY","PERIOD"]
[346622927,1735128672438,-509.27,0.00011885,2]
[346622928,1735128672448,-580.77,0.00011885,2]
[346622929,1735128672457,-500.0,0.00011885,2]
[346622930,1735128672467,-824.37,0.00011885,2]
[346622931,1735128672476,-1158.45,0.00011885,2]
[346622932,1735128672486,-636.41,0.00011885,2]
[346622933,1735128672495,-500.0,0.00011885,2]
[346622934,1735128672507,-2110.03,0.00011885,2]
[346622935,1735128672517,-500.0,0.00011885,2]
[346622936,1735128672526,-804.77,0.00011885,2]
[346622937,1735128672537,-500.0,0.00011885,2]
[346622938,1735128672546,-500.0,0.00011885,2]
[346622939,1735128672556,-547.17,0.00011885,2]
[346622940,1735128672566,-500.0,0.00011885,2]
[346622941,1735128672575,-945.85,0.00011885,2]
[346622942,1735128672586,-866.32,0.00011885,2]
[346622943,1735128672595,-500.0,0.00011885,2]
[346622944,1735128672605,-500.0,0.00011885,2]
[346622945,1735128672615,-761.44,0.00011885,2]
[346622946,1735128672625,-1794.85,0.00011885,2]
[346622947,1735128672635,-2036.3,0.00011885,2]
[346622948,1735128672644,-500.0,0.00011885,2]
[346622949,1735128672655,-500.0,0.00011885,2]
[346622950,1735128672665,-500.0,0.00011885,2]
[346622951,1735128672674,-500.0,0.00011885,2]
[346622952,1735128672684,-500.0,0.00011885,2]
[346622953,1735128672694,-599.82,0.00011885,2]
[346622954,1735128672703,-546.11,0.00011885,2]
[346622955,1735128672713,-500.0,0.00011885,2]
[346622956,1735128672722,-332.3021398,0.00011885,2]
[346622957,1735128672731,-500.0,0.00011885,2]
[346622958,1735128672741,-367.29291141,0.00011885,2]
[346622959,1735128672750,-500.0,0.00011885,2]
[346622960,1735128672763,-500.0,0.00011885,2]
[346622961,1735128672773,-500.0,0.00011885,2]
[346622962,1735128672782,-500.0,0.00011885,2]
[346622963,1735128672791,-500.0,0.00011885,2]
[346622964,1735128672801,-500.0,0.00011885,2]
[346622965,1735128672810,-500.0,0.00011885,2]
[346622966,1735128672820,-500.0,0.00011885,2]
[346622967,1735128672830,-500.0,0.00011885,2]
[346622968,1735128672839,-196.73940355,0.00011885,2]
[346622969,1735128672848,-927.77,0.00011885,2]
[346622970,1735128672858,-547.58,0.00011885,2]
[346622971,1735128672867,-238.05752482,0.00011885,2]
[346622972,1735128672876,-1123.4,0.00011885,2]
[346622973,1735128672885,-500.0,0.00011885,2]
[346622974,1735128672894,-500.0,0.00011885,2]
[346622975,1735128672903,-500.0,0.00011885,2]
[346622976,1735128672912,-767.32,0.00011885,2]
[346622977,1735128672921,-400.8,0.00011885,2]
[346622978,1735128672930,-500.0,0.00011885,2]
[346622979,1735128672939,-500.0,0.00011885,2]
[346622980,1735128672948,-500.0,0.00011886,2]
[346622981,1735128672958,-500.0,0.00011886,2]
[346622982,1735128672967,-500.0,0.00011886,2]
[346622983,1735128672976,-500.0,0.00011886,2]
[346622984,1735128672985,-500.0,0.00011886,2]
[346622985,1735128672994,-500.0,0.00011886,2]
[346622986,1735128673005,-500.0,0.00011886,2]
[346622987,1735128673014,-500.0,0.00011886,2]
[346622988,1735128673023,-500.0,0.00011886,2]
[346622989,1735128673033,-500.0,0.00011886,2]
[346622990,1735128673043,-618.90347718,0.00011886,2]
[346622991,1735128673052,-500.0,0.00011886,2]
[346622992,1735128673061,-500.0,0.00011886,2]
[346622993,1735128673071,-500.38,0.00011886,2]
[346622994,1735128673081,-500.0,0.00011886,2]
[346622995,1735128673090,-500.0,0.00011886,2]
[346622996,1735128673100,-500.0,0.00011886,2]
[346622997,1735128673110,-500.0,0.00011886,2]
[346622998,1735128673119,-500.0,0.00011886,2]
[346622999,1735128673129,-500.0,0.00011886,2]
[346623000,1735128673139,-500.0,0.00011886,2]
[346623001,1735128673148,-500.0,0.00011886,2]
[346623002,1735128673157,-500.0,0.00011886,2]
[346623003,1735128673167,-500.0,0.00011886,2]
[346623004,1735128673177,-500.0,0.00011886,2]
[346623005,1735128673186,-500.0,0.00011886,2]
[346623006,1735128673196,-500.0,0.00011886,2]
[346623007,1735128673208,-500.0,0.00011886,2]
[346623008,1735128673218,-500.0,0.00011886,2]
[346623009,1735128673227,-500.0,0.00011886,2]
[346623010,1735128673237,-500.0,0.00011886,2]
[346623011,1735128673247,-500.0,0.00011886,2]
[346623012,1735128673259,-500.0,0.00011886,2]
[346623013,1735128673269,-500.0,0.00011886,2]
[346623014,1735128673279,-500.0,0.00011886,2]
[346623015,1735128673288,-500.0,0.00011886,2]
[346623016,1735128673298,-500.0,0.00011972,2]
[346623017,1735128673307,-700.0,0.00011972,2]
[346623018,1735128673317,-500.0,0.00011994,2]
[346623019,1735128673326,-245.19,0.00011996,2]
[346623020,1735128673335,-251.5062549,0.00012,3]
[346623021,1735128673345,-770.94,0.00012055,2]
[346623022,1735128673354,-437.22,0.00012055,2]
[346623023,1735128673363,-437.22,0.00012055,2]
[346623024,1735128673373,-770.94,0.00012055,2]
[346623025,1735128673382,-770.94,0.00012055,2]
[346623026,1735128673393,-437.22,0.00012055,2]
[346623027,1735128673402,-770.94,0.00012055,2]
[346623028,1735128673411,-437.22,0.00012055,2]
[346623029,1735128673421,-770.94,0.00012055,2]
[346623030,1735128673430,-437.22,0.00012055,2]
[346623031,1735128673440,-1263.82,0.00012055,2]
[346623032,1735128673448,-437.22,0.00012055,2]
[346623033,1735128673459,-770.94,0.00012055,2]
[346623034,1735128673469,-437.22,0.00012055,2]
[346623035,1735128673478,-437.22,0.00012055,2]
[346623036,1735128673487,-770.94,0.00012055,2]
[346623037,1735128673498,-770.94,0.00012055,2]
[346623038,1735128673509,-437.22,0.00012055,2]
[346623039,1735128673520,-553.45,0.00012059,2]
[346623040,1735128673529,-880.8,0.00012059,2]
[346623041,1735128673539,-1118.26,0.00012059,2]
[346623042,1735128673548,-2148.52,0.00012059,2]
[346623043,1735128673558,-2193.34,0.00012059,2]
[346623044,1735128673567,-16076.46,0.00012059,2]
[346623045,1735128673577,-1560.21,0.00012059,2]
[346623046,1735128673586,-845.03,0.00012059,2]
[346623047,1735128673596,-609.33,0.00012059,2]
[346623048,1735128673606,-1414.46,0.00012059,2]
[346623049,1735128673615,-12903.45,0.00012059,2]
[346623050,1735128673625,-1437.39,0.00012059,2]
[346623051,1735128673635,-1265.16,0.00012059,2]
[346623052,1735128673645,-724.27,0.00012059,2]
[346623053,1735128673654,-2448.87,0.00012059,2]
[346623054,1735128673663,-641.33,0.00012059,2]
[346623055,1735128673673,-500.0,0.00012059,2]
[346623056,1735128673682,-500.0,0.00012059,2]
[346623057,1735128673692,-500.0,0.00012059,2]
[346623058,1735128673701,-1000.0,0.00012059,2]
[346623059,1735128673711,-500.0,0.00012059,2]
[346623060,1735128673720,-1092.28,0.00012059,2]
[346623061,1735128673730,-1099.64,0.00012059,2]
[346623062,1735128673739,-691.57,0.00012059,2]
[346623063,1735128673748,-1390.3,0.00012059,2]
[346623064,1735128673760,-3740.79,0.00012059,2]
[346623065,1735128673770,-751.54,0.00012059,2]
[346623066,1735128673779,-1293.94,0.00012059,2]
[346623067,1735128673789,-991.02,0.00012059,2]
[346623068,1735128673798,-1657.25,0.00012059,2]
[346623069,1735128673807,-948.25,0.00012059,2]
[346623070,1735128673817,-591.97,0.00012059,2]
[346623071,1735128673826,-649.48,0.00012059,2]
[346623072,1735128673836,-538.1,0.00012059,2]
[346623073,1735128673846,-551.06,0.00012059,2]
[346623074,1735128673856,-6548.62,0.00012059,2]
[346623075,1735128673866,-699.03,0.00012059,2]
[346623076,1735128673875,-500.0,0.00012059,2]
[346623077,1735128673885,-500.0,0.00012059,2]
[346623078,1735128673894,-1198.97,0.00012059,2]
[346623079,1735128673904,-10281.34,0.00012087,2]
[346623080,1735128673914,-587.0,0.00012099,2]
[346623081,1735128673924,-569.33,0.00012105,2]
[346623082,1735128673933,-500.0,0.00012105,2]
[346623083,1735128673943,-5023.55,0.00012105,2]
[346623084,1735128673953,-1087.51,0.00012105,2]
[346623085,1735128673963,-1970.85,0.00012105,2]
[346623086,1735128673973,-909.16,0.00012105,2]
[346623087,1735128673982,-500.0,0.00012105,2]
[346623088,1735128673992,-500.0,0.00012105,2]
[346623089,1735128674002,-733.78,0.00012105,2]
[346623090,1735128674012,-500.0,0.00012105,2]
[346623091,1735128674022,-500.0,0.00012105,2]
[346623092,1735128674032,-500.0,0.00012105,2]
[346623093,1735128674042,-500.0,0.00012105,2]
[346623094,1735128674051,-1258.91,0.00012105,2]
[346623095,1735128674061,-500.0,0.00012106,2]
[346623096,1735128674071,-749.88,0.00012106,2]
[346623097,1735128674080,-500.0,0.00012106,2]
[346623098,1735128674090,-523.82,0.00012106,2]
[346623099,1735128674099,-500.0,0.00012106,2]
[346623100,1735128674109,-500.0,0.00012106,2]
[346623101,1735128674119,-514.3,0.00012106,2]
[346623102,1735128674128,-500.0,0.00012106,2]
[346623103,1735128674138,-500.0,0.00012106,2]
[346623104,1735128674147,-500.0,0.00012106,2]
[346623105,1735128674157,-500.0,0.00012106,2]
[346623106,1735128674167,-500.0,0.00012106,2]
[346623107,1735128674177,-500.0,0.00012106,2]
[346623108,1735128674187,-500.0,0.00012106,2]
[346623109,1735128674203,-500.0,0.00012106,2]
[346623110,1735128674212,-500.0,0.00012106,2]
[346623111,1735128674222,-500.0,0.00012106,2]
[346623112,1735128674231,-500.0,0.00012106,2]
[346623113,1735128674243,-500.0,0.00012106,2]
[346623114,1735128674254,-500.0,0.00012106,2]
[346623115,1735128674264,-500.0,0.00012106,2]
[346623116,1735128674274,-534.98,0.00012106,2]
[346623117,1735128674284,-524.24,0.00012106,2]
[346623118,1735128674294,-664.77,0.00012106,2]
[346623119,1735128674303,-643.64,0.00012106,2]
[346623120,1735128674313,-500.0,0.00012106,2]
[346623121,1735128674323,-500.0,0.00012106,2]
[346623122,1735128674333,-500.0,0.00012106,2]
[346623123,1735128674343,-500.0,0.00012106,2]
[346623124,1735128674353,-668.93,0.00012106,2]
[346623125,1735128674362,-518.15,0.00012106,2]
[346623126,1735128674371,-553.78,0.00012106,2]
[346623127,1735128674382,-500.0,0.00012106,2]
[346623128,1735128674391,-597.08,0.00012106,2]
[346623129,1735128674401,-679.22,0.00012106,2]
[346623130,1735128674411,-694.93,0.00012106,2]
[346623131,1735128674420,-500.0,0.00012106,2]
[346623132,1735128674430,-500.0,0.00012106,2]
[346623133,1735128674440,-500.0,0.00012106,2]
[346623134,1735128674450,-500.0,0.00012106,2]
[346623135,1735128674459,-708.83,0.00012106,2]
[346623136,1735128674469,-500.0,0.00012106,2]
[346623137,1735128674479,-500.0,0.00012106,2]
[346623138,1735128674488,-500.0,0.00012106,2]
[346623139,1735128674498,-521.0,0.00012106,2]
[346623140,1735128674508,-500.0,0.00012106,2]
[346623141,1735128674518,-500.0,0.00012106,2]
[346623142,1735128674528,-500.0,0.00012106,2]
[346623143,1735128674537,-500.0,0.00012106,2]
[346623144,1735128674547,-614.84,0.00012106,2]
[346623145,1735128674556,-500.0,0.00012106,2]
[346623146,1735128674566,-500.0,0.00012106,2]
[346623147,1735128674576,-680.48,0.00012106,2]
[346623148,1735128674585,-500.0,0.00012106,2]
[346623149,1735128674595,-500.0,0.00012106,2]
[346623150,1735128674604,-567.62,0.00012106,2]
[346623151,1735128674613,-500.0,0.00012106,2]
[346623152,1735128674624,-1251.67,0.00012106,2]
[346623153,1735128674633,-500.0,0.00012106,2]
[346623154,1735128674643,-860.53,0.00012106,2]
[346623155,1735128674652,-500.0,0.00012106,2]
[346623156,1735128674662,-1103.81,0.00012106,2]
[346623157,1735128674731,-500.0,0.00012106,2]
[346623158,1735128674741,-781.68,0.00012106,2]
[346623159,1735128674750,-500.0,0.00012106,2]
[346623160,1735128674762,-564.71,0.00012106,2]
[346623161,1735128674771,-500.0,0.00012106,2]
[346623162,1735128674780,-154.95509585,0.00012125,2]
[346623163,1735128674789,-500.0,0.00012158,2]
[346623164,1735128674799,-2290.86,0.00012158,2]
[346623165,1735128674808,-500.0,0.00012158,2]
[346623166,1735128674817,-725.94,0.00012158,2]
[346623167,1735128674826,-333.991413,0.00012158,2]
[346623168,1735128674835,-500.0,0.00012158,2]
[346623169,1735128674845,-742.36,0.00012158,2]
[346623170,1735128674854,-324.158438,0.00012158,2]
[346623171,1735128674863,-810.66,0.00012158,2]
[346623172,1735128674871,-622.7,0.00012158,2]
[346623173,1735128674881,-3413.77,0.00012158,2]
[346623174,1735128674890,-732.61,0.00012158,2]
[346623175,1735128674899,-5731.22,0.00012158,2]
[346623176,1735128674909,-883.43,0.00012158,2]
[346623177,1735128674918,-939.83,0.00012158,2]
[346623178,1735128674928,-500.0,0.00012158,2]
[346623179,1735128674937,-500.0,0.00012158,2]
[346623180,1735128674946,-168.82616,0.00012158,2]
[346623181,1735128674956,-736.41,0.00012158,2]
[346623182,1735128674966,-180.261303,0.00012158,2]
[346623183,1735128674975,-1791.77,0.00012158,2]
[346623184,1735128674985,-854.77,0.00012158,2]
[346623185,1735128674994,-523.48,0.00012158,2]
[346623186,1735128675006,-3369.86,0.00012158,2]
[346623187,1735128675016,-1848.99,0.00012158,2]
[346623188,1735128675025,-1399.72,0.00012158,2]
[346623189,1735128675034,-500.0,0.00012158,2]
[346623190,1735128675044,-1169.93,0.00012158,2]
[346623191,1735128675053,-2596.0,0.00012158,2]
[346623192,1735128675063,-6977.77,0.00012158,2]
[346623193,1735128675072,-500.0,0.00012158,2]
[346623194,1735128675082,-1434.35,0.00012158,2]
[346623195,1735128675091,-991.16,0.00012158,2]
[346623196,1735128675100,-588.26,0.00012158,2]
[346623197,1735128675110,-500.0,0.00012158,2]
[346623198,1735128675120,-1017.45,0.00012158,2]
[346623199,1735128675130,-514.73,0.00012158,2]
[346623200,1735128675139,-610.38,0.00012158,2]
[346623201,1735128675148,-1649.81,0.00012158,2]
[346623202,1735128675158,-500.0,0.00012159,2]
[346623203,1735128675167,-500.0,0.00012159,2]
[346623204,1735128675176,-500.0,0.00012159,2]
[346623205,1735128675186,-500.0,0.00012159,2]
[346623206,1735128675197,-500.0,0.00012159,2]
[346623207,1735128675211,-500.0,0.00012159,2]
[346623208,1735128675220,-500.0,0.00012159,2]
[346623209,1735128675230,-500.0,0.00012159,2]
[346623210,1735128675239,-500.0,0.00012159,2]
[346623211,1735128675248,-500.0,0.00012159,2]
[346623212,1735128675261,-500.0,0.00012159,2]
[346623213,1735128675270,-500.0,0.00012159,2]
[346623214,1735128675279,-500.0,0.00012159,2]
[346623215,1735128675288,-500.0,0.00012159,2]
[346623216,1735128675297,-500.0,0.00012159,2]
[346623217,1735128675307,-500.0,0.00012159,2]
[346623218,1735128675316,-500.0,0.00012159,2]
[346623219,1735128675325,-500.0,0.00012159,2]
[346623220,1735128675335,-500.0,0.00012159,2]
[346623221,1735128675344,-500.0,0.00012159,2]
[346623222,1735128675356,-500.0,0.00012159,2]
[346623223,1735128675366,-522.45,0.00012159,2]
[346623224,1735128675375,-500.0,0.00012159,2]
[346623225,1735128675384,-159.21980092,0.00012159,2]
[346623226,1735128675392,-510.66014168,0.00012159,2]
[346623227,1735128675402,-707.46,0.00012159,2]
[346623228,1735128675412,-500.0,0.00012159,2]
[346623229,1735128675420,-500.0,0.00012159,2]
[346623230,1735128675429,-500.0,0.00012159,2]
[346623231,1735128675439,-500.0,0.00012159,2]
[346623232,1735128675447,-569.02,0.00012159,2]
[346623233,1735128675456,-500.0,0.00012159,2]
[346623234,1735128675465,-500.0,0.00012159,2]
[346623235,1735128675476,-500.0,0.00012159,2]
[346623236,1735128675484,-500.0,0.00012159,2]
[346623237,1735128675494,-500.0,0.00012159,2]
[346623238,1735128675505,-500.0,0.00012159,2]
[346623239,1735128675515,-411.5121424,0.00012159,2]
[346623240,1735128675524,-500.0,0.00012159,2]
[346623241,1735128675533,-500.0,0.00012159,2]
[346623242,1735128675542,-500.0,0.00012159,2]
[346623243,1735128675551,-526.98,0.00012159,2]
[346623244,1735128675560,-500.0,0.00012159,2]
[346623245,1735128675570,-553.95,0.00012159,2]
[346623246,1735128675579,-500.0,0.00012159,2]
[346623247,1735128675588,-500.0,0.00012159,2]
[346623248,1735128675597,-500.0,0.00012159,2]
[346623249,1735128675607,-522.26,0.00012159,2]
[346623250,1735128675615,-500.0,0.00012159,2]
[346623251,1735128675625,-500.0,0.00012159,2]
[346623252,1735128675634,-500.0,0.00012159,2]
[346623253,1735128675643,-500.0,0.00012159,2]
[346623254,1735128675652,-500.0,0.00012159,2]
[346623255,1735128675661,-500.0,0.00012159,2]
[346623256,1735128675670,-500.0,0.00012159,2]
[346623257,1735128675679,-500.0,0.00012159,2]
[346623258,1735128675688,-709.08,0.00012159,2]
[346623259,1735128675697,-500.0,0.00012159,2]
[346623260,1735128675706,-500.0,0.00012159,2]
[346623261,1735128675715,-500.0,0.00012159,2]
[346623262,1735128675724,-500.0,0.00012159,2]
[346623263,1735128675734,-530.49,0.00012159,2]
[346623264,1735128675743,-682.85,0.00012159,2]
[346623265,1735128675751,-500.0,0.00012159,2]
[346623266,1735128675762,-814.0,0.00012159,2]
[346623267,1735128675771,-515.72,0.00012159,2]
[346623268,1735128675783,-500.0,0.00012159,2]
[346623269,1735128675798,-500.0,0.00012159,2]
[346623270,1735128675807,-500.0,0.00012159,2]
[346623271,1735128675816,-683.76,0.00012159,2]
[346623272,1735128675826,-500.0,0.00012159,2]
[346623273,1735128675835,-560.83,0.00012159,2]
[346623274,1735128675845,-500.0,0.00012159,2]
[346623275,1735128675854,-3881.42,0.00012159,2]
[346623276,1735128675863,-500.0,0.00012159,2]
[346623277,1735128675872,-500.0,0.00012159,2]
[346623278,1735128675882,-500.0,0.00012159,2]
[346623279,1735128675892,-3517.65,0.00012159,2]
[346623280,1735128675901,-500.0,0.00012159,2]
[346623281,1735128675910,-500.0,0.00012159,2]
[346623282,1735128675920,-1077.62,0.00012159,2]
[346623283,1735128675929,-500.0,0.00012159,2]
[346623284,1735128675939,-2742.79,0.00012159,2]
[346623285,1735128675948,-500.0,0.00012159,2]
[346623286,1735128675958,-1464.0,0.00012159,2]
[346623287,1735128675967,-615.79,0.00012159,2]
[346623288,1735128675977,-500.0,0.00012159,2]
[346623289,1735128675987,-509.27,0.00012159,2]
[346623290,1735128675997,-580.77,0.00012159,2]
[346623291,1735128676008,-824.37,0.00012159,2]
[346623292,1735128676018,-500.0,0.00012159,2]
[346623293,1735128676027,-1158.45,0.00012159,2]
[346623294,1735128676037,-636.41,0.00012159,2]
[346623295,1735128676046,-500.0,0.00012159,2]
[346623296,1735128676056,-2110.03,0.00012159,2]
[346623297,1735128676066,-500.0,0.00012159,2]
[346623298,1735128676075,-804.77,0.00012159,2]
[346623299,1735128676085,-625.60988508,0.00012159,2]
[346623300,1735128676095,-500.0,0.00012159,2]
[346623301,1735128676104,-547.17,0.00012159,2]
[346623302,1735128676114,-500.0,0.00012159,2]
[346623303,1735128676124,-945.85,0.00012159,2]
[346623304,1735128676133,-866.32,0.00012159,2]
[346623305,1735128676143,-500.0,0.00012159,2]
[346623306,1735128676152,-500.0,0.00012159,2]
[346623307,1735128676161,-761.44,0.00012159,2]
[346623308,1735128676171,-1794.85,0.00012159,2]
[346623309,1735128676181,-2036.3,0.00012159,2]
[346623310,1735128676191,-500.0,0.00012159,2]
[346623311,1735128676203,-500.0,0.00012159,2]
[346623312,1735128676213,-500.0,0.00012159,2]
[346623313,1735128676223,-500.0,0.00012159,2]
[346623314,1735128676232,-500.0,0.00012159,2]
[346623315,1735128676243,-599.82,0.00012159,2]
[346623316,1735128676253,-546.11,0.00012159,2]
[346623317,1735128676263,-298.76046526,0.00012159,2]
[346623318,1735128676272,-500.0,0.00012159,2]
[346623319,1735128676283,-500.0,0.00012159,2]
[346623320,1735128676293,-500.0,0.00012159,2]
[346623321,1735128676303,-500.0,0.00012159,2]
[346623322,1735128676311,-500.0,0.00012159,2]
[346623323,1735128676320,-500.0,0.00012159,2]
[346623324,1735128676329,-500.0,0.00012159,2]
[346623325,1735128676338,-500.0,0.00012159,2]
[346623326,1735128676347,-204.108768,0.00012159,2]
[346623327,1735128676356,-500.0,0.00012159,2]
[346623328,1735128676365,-927.77,0.00012159,2]
[346623329,1735128676374,-547.58,0.00012159,2]
[346623330,1735128676383,-1123.4,0.00012159,2]
[346623331,1735128676391,-500.0,0.00012159,2]
[346623332,1735128676400,-500.0,0.00012159,2]
[346623333,1735128676410,-500.0,0.00012159,2]
[346623334,1735128676419,-767.32,0.00012159,2]
[346623335,1735128676428,-500.0,0.00012159,2]
[346623336,1735128676438,-500.0,0.0001216,2]
[346623337,1735128676446,-500.0,0.0001216,2]
[346623338,1735128676455,-500.0,0.0001216,2]
[346623339,1735128676464,-500.0,0.0001216,2]
[346623340,1735128676473,-500.0,0.0001216,2]
[346623341,1735128676482,-500.0,0.0001216,2]
[346623342,1735128676491,-500.0,0.0001216,2]
[346623343,1735128676500,-500.0,0.0001216,2]
[346623344,1735128676510,-500.0,0.0001216,2]
[346623345,1735128676518,-500.0,0.0001216,2]
[346623346,1735128676527,-500.0,0.0001216,2]
[346623347,1735128676536,-500.0,0.0001216,2]
[346623348,1735128676545,-500.38,0.0001216,2]
[346623349,1735128676554,-500.0,0.0001216,2]
[346623350,1735128676563,-500.0,0.0001216,2]
[346623351,1735128676572,-500.0,0.0001216,2]
[346623352,1735128676580,-500.0,0.0001216,2]
[346623353,1735128676590,-500.0,0.0001216,2]
[346623354,1735128676598,-500.0,0.0001216,2]
[346623355,1735128676607,-500.0,0.0001216,2]
[346623356,1735128676617,-500.0,0.0001216,2]
[346623357,1735128676626,-500.0,0.0001216,2]
[346623358,1735128676635,-500.0,0.0001216,2]
[346623359,1735128676643,-500.0,0.0001216,2]
[346623360,1735128676652,-500.0,0.0001216,2]
[346623361,1735128676661,-500.0,0.0001216,2]
[346623362,1735128676670,-500.0,0.0001216,2]
[346623363,1735128676679,-500.0,0.0001216,2]
[346623364,1735128676689,-500.0,0.0001216,2]
[346623365,1735128676698,-500.0,0.0001216,2]
[346623366,1735128676707,-500.0,0.0001216,2]
[346623367,1735128676717,-500.0,0.0001216,2]
[346623368,1735128676726,-500.0,0.0001216,2]
[346623369,1735128676735,-500.0,0.0001216,2]
[346623370,1735128676744,-500.0,0.0001216,2]
[346623371,1735128676753,-500.0,0.0001217,2]
[346623372,1735128676764,-150.0,0.00012192,2]
[346623373,1735128676772,-351.9,0.00012192,2]
[346623374,1735128676783,-1953.96,0.00012192,2]
[346623375,1735128676795,-436.48,0.00012192,2]
[346623376,1735128676804,-977.72,0.00012192,2]
[346623377,1735128676813,-165.85,0.00012192,2]
[346623378,1735128676822,-155.25,0.00012192,2]
[346623379,1735128676831,-977.72,0.00012192,2]
[346623380,1735128676840,-436.48,0.00012192,2]
[346623381,1735128676849,-150.0,0.00012192,2]
[346623382,1735128676858,-436.48,0.00012192,2]
[346623383,1735128676867,-150.0,0.00012192,2]
[346623384,1735128676876,-977.72,0.00012192,2]
[346623385,1735128676885,-435.4,0.00012192,2]
[346623386,1735128676894,-685.08,0.00012192,2]
[346623387,1735128676903,-2400.0,0.00012246,2]
[346623388,1735128676913,-500.0,0.00012268,2]
[346623389,1735128676922,-500.0,0.00012269,2]
[346623390,1735128676931,-182.482872,0.00012301,2]
[346623391,1735128676941,-500.0,0.00012315,2]
[346623392,1735128676950,-664.54,0.00012328,2]
[346623393,1735128676959,-664.54,0.00012328,2]
[346623394,1735128676969,-664.54,0.00012328,2]
[346623395,1735128676978,-664.54,0.00012328,2]
[346623396,1735128676987,-664.54,0.00012328,2]
[346623397,1735128676996,-664.54,0.00012328,2]
[346623398,1735128677006,-928.31,0.00012328,2]
[346623399,1735128677015,-928.31,0.00012328,2]
[346623400,1735128677025,-928.31,0.00012328,2]
[346623401,1735128677034,-928.31,0.00012328,2]
[346623402,1735128677043,-928.31,0.00012328,2]
[346623403,1735128677052,-928.31,0.00012328,2]
[346623404,1735128677061,-553.45,0.00012333,2]
[346623405,1735128677071,-880.8,0.00012333,2]
[346623406,1735128677080,-1118.26,0.00012333,2]
[346623407,1735128677089,-2148.52,0.00012333,2]
[346623408,1735128677098,-2193.34,0.00012333,2]
[346623409,1735128677107,-16076.46,0.00012333,2]
[346623410,1735128677117,-1560.21,0.00012333,2]
[346623411,1735128677126,-845.03,0.00012333,2]
[346623412,1735128677136,-609.33,0.00012333,2]
[346623413,1735128677146,-1414.46,0.00012333,2]
[346623414,1735128677155,-12903.45,0.00012333,2]
[346623415,1735128677164,-1437.39,0.00012333,2]
[346623416,1735128677173,-1265.16,0.00012333,2]
[346623417,1735128677184,-724.27,0.00012333,2]
[346623418,1735128677194,-2448.87,0.00012333,2]
[346623419,1735128677208,-641.33,0.00012333,2]
[346623420,1735128677217,-500.0,0.00012333,2]
[346623421,1735128677227,-500.0,0.00012333,2]
[346623422,1735128677236,-500.0,0.00012333,2]
[346623423,1735128677247,-1000.0,0.00012333,2]
[346623424,1735128677257,-500.0,0.00012333,2]
[346623425,1735128677266,-1092.28,0.00012333,2]
[346623426,1735128677275,-1099.64,0.00012333,2]